[Event "*** SCC Grand Prix: Titled Tuesday Blitz"]
[Site "Chess.com"]
[Date "2020.07.14"]
[Round "4"]
[White "BlueWizzard"]
[Black "SiddharthGMJagadeesh"]
[Result "0-1"]
[WhiteElo "2738"]
[BlackElo "2515"]
[TimeControl "180+1"]
[EndTime "10:38:13 PDT"]
[Termination "SiddharthGMJagadeesh won by resignation"]

1. d4 {[%clk 0:03:00.9]} 1... g6 {[%clk 0:02:57]} 2. Nc3 {[%clk 0:03:01.8]} 2...
Bg7 {[%clk 0:02:55.9]} 3. Bg5 {[%clk 0:03:01.9]} 3... c5 {[%clk 0:02:54.7]} 4.
e3 {[%clk 0:03:01]} 4... cxd4 {[%clk 0:02:45]} 5. exd4 {[%clk 0:03:01.9]} 5...
Qb6 {[%clk 0:02:44.6]} 6. Nf3 {[%clk 0:03:01.4]} 6... d6 {[%clk 0:02:24.1]} 7.
Bb5+ {[%clk 0:02:51.6]} 7... Bd7 {[%clk 0:02:21.6]} 8. Nd5 {[%clk 0:02:45.8]}
8... Qa5+ {[%clk 0:02:21.1]} 9. Bd2 {[%clk 0:02:45.6]} 9... Qd8 {[%clk
0:02:20.6]} 10. a4 {[%clk 0:02:42.5]} 10... a6 {[%clk 0:02:17.9]} 11. Bc4 {[%clk
0:02:41.9]} 11... e6 {[%clk 0:02:13.7]} 12. Nf4 {[%clk 0:02:28.4]} 12... d5
{[%clk 0:02:09.6]} 13. Bd3 {[%clk 0:02:26.4]} 13... Ne7 {[%clk 0:02:06.8]} 14.
h4 {[%clk 0:02:24.8]} 14... Nbc6 {[%clk 0:01:54]} 15. c3 {[%clk 0:02:24.7]}
15... e5 {[%clk 0:01:45.4]} 16. dxe5 {[%clk 0:02:23.2]} 16... Bg4 {[%clk
0:01:44.9]} 17. Be2 {[%clk 0:02:19.2]} 17... Bxf3 {[%clk 0:01:43]} 18. Bxf3
{[%clk 0:02:19.8]} 18... Nxe5 {[%clk 0:01:43.7]} 19. h5 {[%clk 0:02:15.6]} 19...
O-O {[%clk 0:01:22.7]} 20. Be3 {[%clk 0:02:14.9]} 20... Nxf3+ {[%clk 0:00:50.8]}
21. Qxf3 {[%clk 0:02:15.8]} 21... d4 {[%clk 0:00:50.7]} 22. hxg6 {[%clk
0:01:53.9]} 22... dxe3 {[%clk 0:00:33.4]} 23. Rxh7 {[%clk 0:01:35.3]} 23... Qd2+
{[%clk 0:00:28.3]} 24. Kf1 {[%clk 0:01:33.6]} 24... Qxf2+ {[%clk 0:00:21]} 25.
Qxf2 {[%clk 0:01:33.6]} 25... exf2 {[%clk 0:00:21.9]} 26. Rd1 {[%clk 0:01:30.3]}
26... fxg6 {[%clk 0:00:21.7]} 27. Rxg7+ {[%clk 0:01:30.2]} 27... Kxg7 {[%clk
0:00:22.6]} 28. Ne6+ {[%clk 0:01:30.9]} 28... Kf7 {[%clk 0:00:23]} 29. Nxf8
{[%clk 0:01:31.8]} 29... Rxf8 {[%clk 0:00:23.4]} 30. Rd7 {[%clk 0:01:32.4]}
30... Rb8 {[%clk 0:00:22.7]} 31. Kxf2 {[%clk 0:01:32.5]} 31... Ke8 {[%clk
0:00:23.1]} 32. Rd6 {[%clk 0:01:32.3]} 32... Rd8 {[%clk 0:00:23.7]} 33. Rb6
{[%clk 0:01:31.8]} 33... Rd7 {[%clk 0:00:22.4]} 34. Kf3 {[%clk 0:01:31.6]} 34...
Kf7 {[%clk 0:00:22.8]} 35. c4 {[%clk 0:01:30.7]} 35... Nc6 {[%clk 0:00:22.8]}
36. b4 {[%clk 0:01:30.8]} 36... Ne5+ {[%clk 0:00:22.6]} 0-1

[Event "*** SCC Grand Prix: Titled Tuesday Blitz"]
[Site "Chess.com"]
[Date "2020.07.14"]
[Round "4"]
[White "volcanoexplorer"]
[Black "ferdipy"]
[Result "1-0"]
[WhiteElo "2573"]
[BlackElo "2328"]
[TimeControl "180+1"]
[EndTime "10:38:13 PDT"]
[Termination "volcanoexplorer won by resignation"]

1. e4 {[%clk 0:03:00.9]} 1... e6 {[%clk 0:02:57.1]} 2. d4 {[%clk 0:03:01.1]}
2... d5 {[%clk 0:02:57.7]} 3. Nc3 {[%clk 0:03:01.8]} 3... Bb4 {[%clk 0:02:57.8]}
4. e5 {[%clk 0:03:02]} 4... c5 {[%clk 0:02:58.2]} 5. a3 {[%clk 0:03:02.7]} 5...
Bxc3+ {[%clk 0:02:58.8]} 6. bxc3 {[%clk 0:03:03.6]} 6... Ne7 {[%clk 0:02:58.7]}
7. Qg4 {[%clk 0:03:03.8]} 7... Qc7 {[%clk 0:02:59.3]} 8. Qxg7 {[%clk 0:03:03.6]}
8... Rg8 {[%clk 0:03:00]} 9. Qxh7 {[%clk 0:03:04.1]} 9... cxd4 {[%clk
0:02:58.1]} 10. Ne2 {[%clk 0:03:04.4]} 10... Nbc6 {[%clk 0:02:58.4]} 11. f4
{[%clk 0:03:04.8]} 11... dxc3 {[%clk 0:02:59]} 12. Qd3 {[%clk 0:03:04.9]} 12...
Bd7 {[%clk 0:02:59.6]} 13. Rb1 {[%clk 0:03:05.1]} 13... Rc8 {[%clk 0:02:56.3]}
14. h4 {[%clk 0:02:48.6]} 14... Nf5 {[%clk 0:02:40.3]} 15. h5 {[%clk 0:02:45.5]}
15... Ke7 {[%clk 0:02:36.3]} 16. h6 {[%clk 0:02:44.1]} 16... Rg6 {[%clk
0:02:34.6]} 17. h7 {[%clk 0:02:43.7]} 17... Rh8 {[%clk 0:02:34.8]} 18. Nxc3
{[%clk 0:02:38.5]} 18... a6 {[%clk 0:02:32.9]} 19. Qxf5 {[%clk 0:02:33.8]} 19...
exf5 {[%clk 0:02:31]} 20. Nxd5+ {[%clk 0:02:34.2]} 20... Kd8 {[%clk 0:02:31]}
21. Nxc7 {[%clk 0:02:34.7]} 21... Kxc7 {[%clk 0:02:31.3]} 22. Rb3 {[%clk
0:02:24.3]} 22... Nd4 {[%clk 0:02:29.7]} 23. Rd3 {[%clk 0:02:16.5]} 23... Ne6
{[%clk 0:02:22]} 24. Rdh3 {[%clk 0:02:16]} 24... Bc6 {[%clk 0:02:14.9]} 25. R1h2
{[%clk 0:02:07.2]} 25... Be4 {[%clk 0:02:12.8]} 26. Kf2 {[%clk 0:01:42.9]} 26...
b5 {[%clk 0:02:08.2]} 27. c4 {[%clk 0:01:40.6]} 27... Bc6 {[%clk 0:02:05.4]} 28.
cxb5 {[%clk 0:01:39.3]} 28... axb5 {[%clk 0:02:05.5]} 29. Bd3 {[%clk 0:01:38.4]}
29... Ng7 {[%clk 0:01:55.9]} 30. Rh6 {[%clk 0:01:30.3]} 30... Re6 {[%clk
0:01:51.5]} 31. Be3 {[%clk 0:01:21.6]} 31... Kd7 {[%clk 0:01:43.1]} 32. Bc5
{[%clk 0:01:21.6]} 32... Kd8 {[%clk 0:01:40.6]} 33. Bf8 {[%clk 0:01:13.7]} 33...
Rxf8 {[%clk 0:01:29.4]} 34. Rxe6 {[%clk 0:01:11.8]} 34... Rh8 {[%clk 0:01:30.1]}
35. Rf6 {[%clk 0:01:09.5]} 35... Be8 {[%clk 0:01:22.5]} 36. Bxf5 {[%clk
0:01:09.4]} 36... Ke7 {[%clk 0:01:20.3]} 37. Be4 {[%clk 0:01:08.2]} 37... Ne6
{[%clk 0:01:18.5]} 38. Ke3 {[%clk 0:01:05.9]} 38... Nc5 {[%clk 0:01:15.7]} 39.
g4 {[%clk 0:01:03.9]} 39... Nd7 {[%clk 0:01:11.3]} 40. Rd6 {[%clk 0:01:03.7]}
40... Nc5 {[%clk 0:01:11]} 41. g5 {[%clk 0:01:03.4]} 41... Bd7 {[%clk
0:01:08.7]} 42. g6 {[%clk 0:01:01.2]} 42... fxg6 {[%clk 0:01:08]} 43. Rxg6
{[%clk 0:01:02.1]} 43... Be6 {[%clk 0:01:06.8]} 44. f5 {[%clk 0:01:00.1]} 44...
Ba2 {[%clk 0:01:03.5]} 45. Rg7+ {[%clk 0:00:59.6]} 45... Kf8 {[%clk 0:01:03.3]}
46. f6 {[%clk 0:00:59.2]} 46... Nxe4 {[%clk 0:01:01.3]} 47. Kxe4 {[%clk
0:00:59.4]} 47... Bb1+ {[%clk 0:01:02.2]} 48. Kf4 {[%clk 0:00:59.7]} 48... b4
{[%clk 0:01:01.6]} 49. axb4 {[%clk 0:00:57.7]} 1-0

[Event "*** SCC Grand Prix: Titled Tuesday Blitz"]
[Site "Chess.com"]
[Date "2020.07.14"]
[Round "4"]
[White "Kotofeyca"]
[Black "maxsergej"]
[Result "1-0"]
[WhiteElo "2307"]
[BlackElo "2081"]
[TimeControl "180+1"]
[EndTime "10:38:19 PDT"]
[Termination "Kotofeyca won on time"]

1. d4 {[%clk 0:03:00.9]} 1... Nf6 {[%clk 0:00:48.5]} 2. c4 {[%clk 0:02:58.6]}
2... e6 {[%clk 0:00:48.2]} 3. Nf3 {[%clk 0:02:58.4]} 3... d5 {[%clk 0:00:47.5]}
4. Nc3 {[%clk 0:02:58.4]} 4... c6 {[%clk 0:00:46.9]} 5. cxd5 {[%clk 0:02:58.5]}
5... exd5 {[%clk 0:00:46.7]} 6. Bg5 {[%clk 0:02:58.8]} 6... h6 {[%clk
0:00:45.9]} 7. Bh4 {[%clk 0:02:58.1]} 7... Bf5 {[%clk 0:00:46.1]} 8. Qb3 {[%clk
0:02:55.6]} 8... Qb6 {[%clk 0:00:44.9]} 9. Qxb6 {[%clk 0:02:55.6]} 9... axb6
{[%clk 0:00:44.6]} 10. Bxf6 {[%clk 0:02:56.5]} 10... gxf6 {[%clk 0:00:45]} 11.
e3 {[%clk 0:02:57.4]} 11... Nd7 {[%clk 0:00:43.4]} 12. Nh4 {[%clk 0:02:57.5]}
12... Bg6 {[%clk 0:00:41.6]} 13. Kd2 {[%clk 0:02:55.9]} 13... Bd6 {[%clk
0:00:41.1]} 14. Bd3 {[%clk 0:02:54.2]} 14... Rg8 {[%clk 0:00:39.4]} 15. g3
{[%clk 0:02:47.8]} 15... b5 {[%clk 0:00:28.8]} 16. Nf5 {[%clk 0:02:47.3]} 16...
Bxf5 {[%clk 0:00:28.1]} 17. Bxf5 {[%clk 0:02:48.2]} 17... Nb6 {[%clk 0:00:27.9]}
18. b3 {[%clk 0:02:48.1]} 18... Nc8 {[%clk 0:00:24.8]} 19. a4 {[%clk 0:02:43.4]}
19... bxa4 {[%clk 0:00:22.6]} 20. Bxc8 {[%clk 0:02:31.4]} 20... Rxc8 {[%clk
0:00:21.8]} 21. Rxa4 {[%clk 0:02:31.7]} 21... Kd7 {[%clk 0:00:21.9]} 22. Ra7
{[%clk 0:02:30.7]} 22... Kc7 {[%clk 0:00:20.4]} 23. Rc1 {[%clk 0:02:30.4]} 23...
Kb6 {[%clk 0:00:20.6]} 24. Rca1 {[%clk 0:02:26.1]} 24... Bb4 {[%clk 0:00:19.4]}
25. Kd3 {[%clk 0:02:25]} 25... Bxc3 {[%clk 0:00:19.4]} 26. Kxc3 {[%clk
0:02:24.9]} 26... f5 {[%clk 0:00:18.9]} 27. R7a4 {[%clk 0:02:15.3]} 27... f4
{[%clk 0:00:15.4]} 28. exf4 {[%clk 0:02:12.1]} 28... Rge8 {[%clk 0:00:15.1]} 29.
Kd3 {[%clk 0:02:06.8]} 29... Re7 {[%clk 0:00:15.3]} 30. R4a2 {[%clk 0:01:56.3]}
30... Rce8 {[%clk 0:00:14.5]} 31. Rc2 {[%clk 0:01:55.2]} 31... Re6 {[%clk
0:00:12.1]} 32. b4 {[%clk 0:01:54.6]} 32... f5 {[%clk 0:00:11.6]} 33. Rb1 {[%clk
0:01:54.3]} 33... Re1 {[%clk 0:00:08.7]} 34. Rxe1 {[%clk 0:01:49.2]} 34... Rxe1
{[%clk 0:00:08]} 35. Re2 {[%clk 0:01:50.1]} 35... Rb1 {[%clk 0:00:06.8]} 36. Re6
{[%clk 0:01:47.9]} 36... Rxb4 {[%clk 0:00:05.1]} 37. Rxh6 {[%clk 0:01:47.6]}
37... Rb3+ {[%clk 0:00:04.8]} 38. Kc2 {[%clk 0:01:47.9]} 38... Rf3 {[%clk
0:00:04]} 39. Rh5 {[%clk 0:01:46.8]} 39... Rxf2+ {[%clk 0:00:03.7]} 40. Kd3
{[%clk 0:01:47.7]} 40... Kb5 {[%clk 0:00:02.4]} 41. Rxf5 {[%clk 0:01:47.5]}
41... Rxh2 {[%clk 0:00:01.6]} 42. Rg5 {[%clk 0:01:43.9]} 42... Rg2 {[%clk
0:00:01.5]} 43. f5 {[%clk 0:01:41.6]} 1-0

[Event "*** SCC Grand Prix: Titled Tuesday Blitz"]
[Site "Chess.com"]
[Date "2020.07.14"]
[Round "4"]
[White "biaf13"]
[Black "Shivagami"]
[Result "0-1"]
[WhiteElo "1951"]
[BlackElo "2213"]
[TimeControl "180+1"]
[EndTime "10:38:20 PDT"]
[Termination "Shivagami won by resignation"]

1. e4 {[%clk 0:03:00.9]} 1... c5 {[%clk 0:02:54.1]} 2. Nf3 {[%clk 0:03:00.2]}
2... d6 {[%clk 0:02:52.7]} 3. d4 {[%clk 0:03:00.5]} 3... cxd4 {[%clk 0:02:48]}
4. Nxd4 {[%clk 0:03:01.4]} 4... Nf6 {[%clk 0:02:48]} 5. Nc3 {[%clk 0:03:01.8]}
5... a6 {[%clk 0:02:47.1]} 6. Be3 {[%clk 0:02:58.4]} 6... e5 {[%clk 0:02:46.8]}
7. Nb3 {[%clk 0:02:57.1]} 7... Be6 {[%clk 0:02:43.7]} 8. f3 {[%clk 0:02:55.5]}
8... Be7 {[%clk 0:02:43.6]} 9. Qd2 {[%clk 0:02:48.9]} 9... b5 {[%clk 0:02:43.5]}
10. O-O-O {[%clk 0:02:47.6]} 10... Nbd7 {[%clk 0:02:39.2]} 11. g4 {[%clk
0:02:46]} 11... Rc8 {[%clk 0:02:38.9]} 12. g5 {[%clk 0:02:44.8]} 12... Nh5
{[%clk 0:02:37.4]} 13. Ne2 {[%clk 0:02:24.5]} 13... Nb6 {[%clk 0:02:30.5]} 14.
Ng3 {[%clk 0:02:19.9]} 14... Nf4 {[%clk 0:02:26.7]} 15. h4 {[%clk 0:02:17.9]}
15... Qc7 {[%clk 0:02:07.1]} 16. Kb1 {[%clk 0:02:16.5]} 16... Nc4 {[%clk
0:01:55.6]} 17. Bxc4 {[%clk 0:02:15.7]} 17... bxc4 {[%clk 0:01:54.1]} 18. Nc1
{[%clk 0:02:14.9]} 18... c3 {[%clk 0:01:49.4]} 19. Qxc3 {[%clk 0:02:11.5]} 19...
Qxc3 {[%clk 0:01:43.4]} 20. bxc3 {[%clk 0:02:07.7]} 20... Rxc3 {[%clk
0:01:41.1]} 21. Rhe1 {[%clk 0:02:01.3]} 21... O-O {[%clk 0:01:36]} 22. Nf5
{[%clk 0:01:58.4]} 22... Rb8+ {[%clk 0:01:32.6]} 23. Ka1 {[%clk 0:01:53.4]}
23... Bxf5 {[%clk 0:01:32]} 24. exf5 {[%clk 0:01:52.3]} 24... Ng2 {[%clk
0:01:29.5]} 25. Ba7 {[%clk 0:01:45.8]} 25... Rb7 {[%clk 0:01:16.8]} 26. Rg1
{[%clk 0:01:40.2]} 26... Rxc2 {[%clk 0:01:15.3]} 27. f6 {[%clk 0:01:21.1]} 27...
Bf8 {[%clk 0:01:09.1]} 28. fxg7 {[%clk 0:01:05.8]} 28... Kxg7 {[%clk 0:01:08.5]}
29. Nb3 {[%clk 0:00:47.8]} 29... Rxa7 {[%clk 0:00:54.2]} 30. Kb1 {[%clk
0:00:45.9]} 30... Rac7 {[%clk 0:00:50.6]} 31. Rc1 {[%clk 0:00:37.8]} 31... Rxc1+
{[%clk 0:00:48.4]} 32. Nxc1 {[%clk 0:00:37.3]} 32... Nf4 {[%clk 0:00:45.8]} 0-1

[Event "*** SCC Grand Prix: Titled Tuesday Blitz"]
[Site "Chess.com"]
[Date "2020.07.14"]
[Round "4"]
[White "Aguiar94"]
[Black "LyonBeast"]
[Result "0-1"]
[WhiteElo "2543"]
[BlackElo "3020"]
[TimeControl "180+1"]
[EndTime "10:38:22 PDT"]
[Termination "LyonBeast won by resignation"]

1. e4 {[%clk 0:03:00.9]} 1... d5 {[%clk 0:02:54.1]} 2. exd5 {[%clk 0:03:00.6]}
2... Nf6 {[%clk 0:02:52.7]} 3. Nf3 {[%clk 0:02:59.8]} 3... Qxd5 {[%clk
0:02:51.5]} 4. d4 {[%clk 0:02:59.1]} 4... Bg4 {[%clk 0:02:50.5]} 5. Be2 {[%clk
0:02:58.6]} 5... Nc6 {[%clk 0:02:48.1]} 6. h3 {[%clk 0:02:58.9]} 6... Bh5 {[%clk
0:02:38.3]} 7. c4 {[%clk 0:02:56.1]} 7... Qd7 {[%clk 0:02:35.2]} 8. O-O {[%clk
0:02:48.1]} 8... Bxf3 {[%clk 0:02:32.5]} 9. Bxf3 {[%clk 0:02:47.8]} 9... Nxd4
{[%clk 0:02:33.1]} 10. Bxb7 {[%clk 0:02:46.3]} 10... Rb8 {[%clk 0:02:33.6]} 11.
Bf3 {[%clk 0:02:46.3]} 11... e6 {[%clk 0:02:32.6]} 12. Be3 {[%clk 0:02:31.7]}
12... Bc5 {[%clk 0:02:24.5]} 13. Nc3 {[%clk 0:02:26.9]} 13... O-O {[%clk
0:02:16.5]} 14. b3 {[%clk 0:02:17.5]} 14... Rfd8 {[%clk 0:02:14.9]} 15. Rc1
{[%clk 0:01:57.4]} 15... Qe7 {[%clk 0:02:11.7]} 16. Bxd4 {[%clk 0:01:52]} 16...
Bxd4 {[%clk 0:02:08.6]} 17. Qe2 {[%clk 0:01:51.4]} 17... Bxc3 {[%clk 0:02:05.7]}
18. Rxc3 {[%clk 0:01:50.9]} 18... c5 {[%clk 0:02:06.6]} 19. Rd1 {[%clk
0:01:47.6]} 19... h6 {[%clk 0:02:06.1]} 20. Rcd3 {[%clk 0:01:46.9]} 20... Qc7
{[%clk 0:02:02.2]} 21. Qd2 {[%clk 0:01:45.4]} 21... Rxd3 {[%clk 0:02:01.9]} 22.
Qxd3 {[%clk 0:01:46.3]} 22... g6 {[%clk 0:01:58.4]} 23. Qd6 {[%clk 0:01:44.5]}
23... Rc8 {[%clk 0:01:58.2]} 24. g3 {[%clk 0:01:42.3]} 24... Kg7 {[%clk
0:01:57.7]} 25. Qa6 {[%clk 0:01:40.3]} 25... Nd7 {[%clk 0:01:54.6]} 26. h4
{[%clk 0:01:29.7]} 26... Ne5 {[%clk 0:01:53.6]} 27. Bg2 {[%clk 0:01:29.6]} 27...
h5 {[%clk 0:01:53.9]} 28. Qb7 {[%clk 0:01:23.5]} 28... Qxb7 {[%clk 0:01:51.8]}
29. Bxb7 {[%clk 0:01:24.4]} 29... Rc7 {[%clk 0:01:52.4]} 30. Bg2 {[%clk
0:01:23.5]} 30... Kf6 {[%clk 0:01:52]} 31. Rd6 {[%clk 0:01:20.4]} 31... Ke7
{[%clk 0:01:52.1]} 32. Rd1 {[%clk 0:01:18.3]} 32... Rd7 {[%clk 0:01:51]} 33.
Rxd7+ {[%clk 0:01:17.4]} 33... Kxd7 {[%clk 0:01:51.9]} 34. Bh1 {[%clk
0:01:15.3]} 34... Nd3 {[%clk 0:01:51.9]} 35. Be4 {[%clk 0:01:13.2]} 35... Nc1
{[%clk 0:01:52]} 36. Bb1 {[%clk 0:01:11.9]} 36... Ne2+ {[%clk 0:01:52.5]} 37.
Kf1 {[%clk 0:01:12]} 37... Nc3 {[%clk 0:01:53.4]} 38. Bd3 {[%clk 0:01:10.3]}
38... Nxa2 {[%clk 0:01:53.3]} 39. Ke1 {[%clk 0:01:10.2]} 39... Nb4 {[%clk
0:01:53]} 40. Be4 {[%clk 0:01:09.7]} 40... a5 {[%clk 0:01:53.1]} 41. Kd2 {[%clk
0:01:09.9]} 41... Nc6 {[%clk 0:01:53.5]} 42. Kc3 {[%clk 0:01:09.8]} 42... Nd4
{[%clk 0:01:54.2]} 43. Bg2 {[%clk 0:01:03.5]} 43... Kd6 {[%clk 0:01:52.4]} 44.
Be4 {[%clk 0:00:59.5]} 44... Ke5 {[%clk 0:01:52.4]} 45. Bb7 {[%clk 0:00:59.3]}
45... f5 {[%clk 0:01:52.4]} 46. Ba8 {[%clk 0:00:56.6]} 46... Kf6 {[%clk
0:01:52.6]} 47. Bb7 {[%clk 0:00:55.8]} 47... g5 {[%clk 0:01:52.2]} 48. Ba8
{[%clk 0:00:49.1]} 48... g4 {[%clk 0:01:50.7]} 49. Bb7 {[%clk 0:00:47.8]} 49...
e5 {[%clk 0:01:50.6]} 50. Bd5 {[%clk 0:00:47]} 50... f4 {[%clk 0:01:50.8]} 51.
Be4 {[%clk 0:00:45]} 51... fxg3 {[%clk 0:01:50.8]} 52. fxg3 {[%clk 0:00:45.9]}
52... Ne2+ {[%clk 0:01:51.3]} 53. Kd3 {[%clk 0:00:44]} 53... Nxg3 {[%clk
0:01:52.2]} 54. Bc6 {[%clk 0:00:42.7]} 54... Nf5 {[%clk 0:01:52.4]} 55. Be8
{[%clk 0:00:40.6]} 55... Nxh4 {[%clk 0:01:52.4]} 56. Bxh5 {[%clk 0:00:39.6]}
56... Kg5 {[%clk 0:01:53]} 57. Be8 {[%clk 0:00:39.9]} 57... Kf4 {[%clk
0:01:53.6]} 58. Bc6 {[%clk 0:00:39.9]} 58... Nf3 {[%clk 0:01:53.5]} 59. Ba8
{[%clk 0:00:38]} 59... g3 {[%clk 0:01:53.8]} 60. Ke2 {[%clk 0:00:35.3]} 60... g2
{[%clk 0:01:54.3]} 0-1

[Event "*** SCC Grand Prix: Titled Tuesday Blitz"]
[Site "Chess.com"]
[Date "2020.07.14"]
[Round "4"]
[White "EvgenyRomanov"]
[Black "doctorcristian"]
[Result "1-0"]
[WhiteElo "2603"]
[BlackElo "2397"]
[TimeControl "180+1"]
[EndTime "10:38:24 PDT"]
[Termination "EvgenyRomanov won on time"]

1. b3 {[%clk 0:03:00.9]} 1... Nf6 {[%clk 0:02:58.9]} 2. Bb2 {[%clk 0:02:59.8]}
2... e6 {[%clk 0:02:59.6]} 3. Nf3 {[%clk 0:02:53.1]} 3... b6 {[%clk 0:02:59.2]}
4. e3 {[%clk 0:02:52.2]} 4... Bb7 {[%clk 0:02:58.1]} 5. d4 {[%clk 0:02:52.1]}
5... c5 {[%clk 0:02:57]} 6. Bd3 {[%clk 0:02:51.4]} 6... Nc6 {[%clk 0:02:54.3]}
7. O-O {[%clk 0:02:50.6]} 7... Be7 {[%clk 0:02:48.1]} 8. Nbd2 {[%clk 0:02:49.3]}
8... O-O {[%clk 0:02:44.1]} 9. a3 {[%clk 0:02:46]} 9... d6 {[%clk 0:02:35.3]}
10. Qe2 {[%clk 0:02:39.5]} 10... Qc7 {[%clk 0:02:34.6]} 11. Rad1 {[%clk
0:02:35.3]} 11... Rfe8 {[%clk 0:02:21.5]} 12. dxc5 {[%clk 0:02:32.4]} 12... dxc5
{[%clk 0:02:19.9]} 13. e4 {[%clk 0:02:31.5]} 13... e5 {[%clk 0:01:54.9]} 14. c3
{[%clk 0:01:55.9]} 14... Nh5 {[%clk 0:01:42.9]} 15. g3 {[%clk 0:01:54.6]} 15...
g6 {[%clk 0:01:28.9]} 16. Nc4 {[%clk 0:01:52.7]} 16... Rad8 {[%clk 0:01:20.6]}
17. Ne3 {[%clk 0:01:51.1]} 17... Na5 {[%clk 0:01:09.3]} 18. b4 {[%clk
0:01:45.6]} 18... cxb4 {[%clk 0:00:21.3]} 19. axb4 {[%clk 0:01:43.7]} 19... Nc6
{[%clk 0:00:17.7]} 20. Nd5 {[%clk 0:01:44.2]} 20... Qc8 {[%clk 0:00:14.8]} 21.
b5 {[%clk 0:01:43.8]} 21... Na5 {[%clk 0:00:13.9]} 22. c4 {[%clk 0:01:42.2]}
22... f6 {[%clk 0:00:09.4]} 23. Nd2 {[%clk 0:01:33.2]} 23... Bc5 {[%clk
0:00:04.7]} 24. Kh1 {[%clk 0:01:28.6]} 24... Qh3 {[%clk 0:00:02.9]} 25. Rg1
{[%clk 0:01:23.6]} 25... Bxd5 {[%clk 0:00:02.5]} 26. exd5 {[%clk 0:01:22.9]}
26... f5 {[%clk 0:00:01.6]} 27. Qe1 {[%clk 0:01:11.1]} 27... e4 {[%clk
0:00:01.9]} 28. Bf1 {[%clk 0:01:10.4]} 28... Qg4 {[%clk 0:00:01.6]} 29. Be2
{[%clk 0:01:06]} 29... Qh3 {[%clk 0:00:01.4]} 30. Nf1 {[%clk 0:01:05.1]} 1-0

[Event "*** SCC Grand Prix: Titled Tuesday Blitz"]
[Site "Chess.com"]
[Date "2020.07.14"]
[Round "4"]
[White "LawrenceTrent"]
[Black "TimofeevAr"]
[Result "0-1"]
[WhiteElo "2510"]
[BlackElo "2786"]
[TimeControl "180+1"]
[EndTime "10:38:26 PDT"]
[Termination "TimofeevAr won by resignation"]

1. d4 {[%clk 0:03:00.9]} 1... d5 {[%clk 0:02:58.8]} 2. Nc3 {[%clk 0:02:57.5]}
2... Nf6 {[%clk 0:02:57.2]} 3. Bf4 {[%clk 0:02:44.5]} 3... a6 {[%clk 0:02:55.2]}
4. e3 {[%clk 0:02:44.2]} 4... e6 {[%clk 0:02:54.5]} 5. g4 {[%clk 0:02:43.5]}
5... c5 {[%clk 0:02:51.8]} 6. g5 {[%clk 0:02:42.9]} 6... Nfd7 {[%clk 0:02:52.1]}
7. Nf3 {[%clk 0:02:41.4]} 7... Nc6 {[%clk 0:02:51.9]} 8. h4 {[%clk 0:02:41.3]}
8... b5 {[%clk 0:02:51.5]} 9. Bg2 {[%clk 0:02:41.2]} 9... Bb7 {[%clk 0:02:51.4]}
10. a3 {[%clk 0:02:36.5]} 10... Nb6 {[%clk 0:02:47.8]} 11. b3 {[%clk 0:02:20.4]}
11... Bd6 {[%clk 0:02:45.7]} 12. Ne2 {[%clk 0:02:19.6]} 12... Qe7 {[%clk
0:02:42]} 13. Bxd6 {[%clk 0:02:07.4]} 13... Qxd6 {[%clk 0:02:41.9]} 14. Qd2
{[%clk 0:02:04]} 14... O-O-O {[%clk 0:02:36.8]} 15. Qc3 {[%clk 0:01:44.9]} 15...
c4 {[%clk 0:02:34]} 16. Ne5 {[%clk 0:01:40.5]} 16... Rhf8 {[%clk 0:02:23.6]} 17.
Nxc6 {[%clk 0:01:36.8]} 17... Bxc6 {[%clk 0:02:22.6]} 18. Qb4 {[%clk 0:01:37.2]}
18... Kc7 {[%clk 0:02:13.5]} 19. f4 {[%clk 0:01:28.5]} 19... Ra8 {[%clk
0:02:12.5]} 20. Qxd6+ {[%clk 0:01:27.3]} 20... Kxd6 {[%clk 0:02:12.6]} 21. Ng3
{[%clk 0:01:11]} 21... a5 {[%clk 0:02:10.6]} 22. O-O {[%clk 0:01:05.7]} 22... g6
{[%clk 0:01:56.5]} 23. h5 {[%clk 0:01:04.8]} 23... Rfc8 {[%clk 0:01:55.2]} 24.
e4 {[%clk 0:00:54.5]} 24... cxb3 {[%clk 0:01:48.4]} 25. cxb3 {[%clk 0:00:53.1]}
25... Bd7 {[%clk 0:01:48.6]} 26. f5 {[%clk 0:00:52.7]} 26... Rc3 {[%clk
0:01:46.4]} 27. Kh2 {[%clk 0:00:48.9]} 27... gxf5 {[%clk 0:01:34.7]} 28. exf5
{[%clk 0:00:47.9]} 28... Rg8 {[%clk 0:01:34.1]} 29. g6 {[%clk 0:00:45.6]} 29...
hxg6 {[%clk 0:01:32.8]} 30. hxg6 {[%clk 0:00:42.7]} 30... fxg6 {[%clk
0:01:32.9]} 31. f6 {[%clk 0:00:42.7]} 31... Rh8+ {[%clk 0:01:32.8]} 32. Bh3
{[%clk 0:00:42.9]} 32... e5 {[%clk 0:01:31.1]} 33. dxe5+ {[%clk 0:00:43.1]}
33... Kxe5 {[%clk 0:01:31.2]} 34. Rae1+ {[%clk 0:00:33.4]} 34... Kd6 {[%clk
0:01:31.1]} 35. f7 {[%clk 0:00:28]} 35... Rxh3+ {[%clk 0:01:30.1]} 36. Kg2
{[%clk 0:00:28.4]} 36... Rcxg3+ {[%clk 0:01:29.9]} 37. Kf2 {[%clk 0:00:27.7]}
37... Rf3+ {[%clk 0:01:22.4]} 38. Kg2 {[%clk 0:00:27.1]} 38... Rhg3+ {[%clk
0:01:21.2]} 39. Kh2 {[%clk 0:00:26.8]} 39... Rxf7 {[%clk 0:01:17.2]} 40. Rxf7
{[%clk 0:00:26]} 40... Rxb3 {[%clk 0:01:17.4]} 41. Rf6+ {[%clk 0:00:26.4]} 41...
Kc5 {[%clk 0:01:17.6]} 42. Rxg6 {[%clk 0:00:22.6]} 42... Rxa3 {[%clk 0:01:17]}
0-1